bitfinex/quotes_ETHUSD_20241129
["timestamp","ask_amount","ask_price","bid_price","bid_amount"]
[1732846087091,0.7753,3582.5,3582.2,2.7915]
[1732846087460,0.7753,3582.5,3582.0,2.79171]
[1732846087662,0.03489523,3582.4,3582.3,0.04222246]
[1732846087860,0.03489523,3582.4,3581.8,2.79188]
[1732846088079,0.03489523,3582.4,3582.3,0.04222246]
[1732846088279,0.03489523,3582.4,3581.8,3.40987776]
[1732846088473,0.7753,3582.5,3582.3,0.04222246]
[1732846088679,0.7753,3582.5,3581.9,2.7918]
[1732846088680,0.0348952,3582.4,3581.9,2.7918]
[1732846089612,0.7753,3582.5,3582.0,2.79172]
[1732846089907,0.7753,3582.5,3581.5,2.79205]
[1732846090065,2.79142,3582.4,3581.7,2.79196]
[1732846090266,0.7753,3582.5,3581.8,2.79188]
[1732846090465,2.79173,3582.0,3581.3,3.60306]
[1732846090676,0.7941,3582.1,3581.4,2.7922]
[1732846090902,3.6206901,3582.1,3581.2,3.34010368]
[1732846091101,3.6206901,3582.1,3581.3,0.61325237]
[1732846091264,3.6206901,3582.1,3581.3,3.40551237]
[1732846091594,3.58579,3582.1,3581.3,3.40551237]
[1732846091901,2.79176,3582.0,3581.3,3.40109927]
[1732846092289,0.82900097,3582.1,3581.2,3.34011368]
[1732846092290,2.79181,3581.9,3581.2,3.34011368]
[1732846092495,2.79176,3582.0,3581.2,3.34011368]
[1732846092721,2.79183,3581.9,3581.2,3.34011368]
[1732846092869,2.79207,3581.6,3580.9,2.79256]
[1732846093067,0.03490363,3581.5,3581.0,0.55087953]
[1732846093298,0.8052,3581.7,3581.0,0.55087953]
[1732846093507,2.79138,3582.5,3581.1,0.82272081]
[1732846093711,2.79152,3582.3,3581.5,2.79206]
[1732846093882,2.79152,3582.3,3581.6,2.79202]
[1732846094082,2.79152,3582.3,3581.3,2.79228]
[1732846094281,2.79167,3582.1,3581.4,2.79217]
[1732846094483,0.03490009,3582.0,3581.4,2.79217]
[1732846094672,2.79152,3582.3,3581.5,2.79212]
[1732846095106,2.79152,3582.3,3581.1,0.8019]
[1732846095405,2.79158,3582.2,3581.4,2.79217]
[1732846095720,3.58011,3582.1,3581.4,2.79217]
[1732846096008,0.03490012,3582.0,3581.4,2.79217]
[1732846096433,0.03490012,3582.0,3581.2,0.43527795]
[1732846096574,0.03490012,3582.0,3581.4,2.7922]
[1732846096774,0.7884,3582.1,3581.1,0.8019]
[1732846097072,0.7884,3582.1,3581.6,2.79204]
[1732846097470,0.7884,3582.1,3581.1,3.8019]
[1732846097471,0.7884,3582.1,3581.2,2.79236]
[1732846097718,0.7884,3582.1,3581.7,2.7919]
[1732846098413,0.7719,3582.6,3581.9,2.79174]
[1732846098616,0.7719,3582.6,3582.0,2.79173]
[1732846099612,0.7719,3582.6,3581.1,3.8019]
[1732846099809,0.7719,3582.6,3581.9,2.79181]
[1732846100012,3.56318,3582.6,3581.9,2.79181]
[1732846100231,3.56318,3582.6,3582.0,0.03874676]
[1732846100601,3.56318,3582.6,3581.9,2.79181]
[1732846100602,4.198602,3582.6,3582.1,0.0374552]
[1732846100939,0.03489724,3582.5,3581.7,2.79196]
[1732846101146,2.79142,3582.4,3582.2,0.0374552]
[1732846101302,0.03489724,3582.3,3581.7,2.79196]
[1732846101505,4.198602,3582.6,3582.3,0.0374552]
[1732846101831,1.407322,3582.6,3582.4,0.0374552]
[1732846102142,1.407322,3582.6,3582.0,2.79173]
[1732846102343,1.66729828,3582.6,3582.5,0.0374552]
[1732846102506,1.66729828,3582.6,3582.0,2.79173]
[1732846102715,1.66729828,3582.6,3582.5,0.0374552]
[1732846103028,4.49353515,3582.6,3582.5,0.0374552]
[1732846103230,4.49353515,3582.6,3581.8,2.79186]
[1732846103559,0.25997628,3582.5,3581.8,2.79186]
[1732846103709,0.25997628,3582.5,3581.9,2.79173]
[1732846103911,0.8183,3582.4,3581.4,0.5674274]
[1732846104116,0.8183,3582.4,3581.9,2.79181]
[1732846104342,0.25997628,3582.3,3581.9,2.79181]
[1732846104857,0.26084766,3582.3,3581.9,2.79181]
[1732846105012,0.29574705,3582.2,3581.7,2.79196]
[1732846105217,0.03489723,3582.2,3581.7,2.79196]
[1732846105644,0.829,3582.0,3581.5,2.79212]
[1732846105812,0.29594178,3581.9,3581.3,2.79224]
[1732846106016,0.03489966,3581.9,3581.4,2.7922]
[1732846106217,0.26116164,3581.8,3581.2,3.3595195]
[1732846106460,3.6208,3582.0,3581.2,3.3595195]
[1732846106614,0.26116918,3581.9,3581.2,3.3595195]
[1732846106952,0.26116918,3581.8,3581.2,3.3595195]
[1732846107124,0.26116918,3581.7,3581.2,3.3595195]
[1732846107329,0.26116918,3581.6,3581.2,3.3595195]
[1732846107529,0.26132604,3581.5,3581.2,0.5671595]
[1732846107810,0.8098,3581.6,3581.4,2.79219]
[1732846108096,0.41767683,3581.9,3581.5,2.79211]
[1732846108301,0.26128908,3581.8,3581.5,2.82773111]
[1732846108475,0.26128908,3581.7,3581.5,2.82773111]
[1732846108802,0.26128908,3581.6,3581.5,2.82773111]
[1732846109673,0.7638,3582.3,3581.5,3.52319817]
[1732846109889,0.67897864,3582.2,3581.6,2.79204]
[1732846110091,0.26130181,3582.1,3581.7,2.79191]
[1732846110292,0.7638,3582.3,3581.7,0.03562111]
[1732846110293,0.26130181,3582.0,3581.7,0.03562111]
[1732846110472,1.18147683,3582.3,3581.7,0.03562111]
[1732846110473,0.26129575,3581.9,3581.7,0.03562111]
[1732846110675,0.29619502,3582.2,3581.7,2.82757111]
[1732846110874,0.26129666,3582.2,3581.9,2.79179]
[1732846111287,0.26129666,3582.2,3582.0,0.03562111]
[1732846111531,0.26129666,3582.2,3582.1,2.79165]
[1732846111701,0.26129666,3582.6,3582.4,2.79135]
[1732846111903,2.79158,3582.2,3582.1,0.03550114]
[1732846112154,0.7655,3582.1,3580.4,0.8214]
[1732846112328,2.79203,3581.7,3580.6,2.79279]
[1732846112659,0.83430434,3581.6,3581.2,2.79235]
[1732846112807,0.83430434,3581.6,3581.0,2.79251]
[1732846113004,0.7994,3581.6,3581.0,2.79243]
[1732846113259,0.7994,3581.6,3581.1,0.03436447]
[1732846113543,0.03490409,3581.5,3581.1,0.03436447]
[1732846113739,0.7994,3581.6,3581.1,0.03436447]
[1732846113957,0.03490409,3581.5,3581.0,2.79248]
[1732846114299,0.7994,3581.6,3581.1,2.82691777]
[1732846114751,0.03490409,3581.5,3581.1,2.82691777]
[1732846115044,0.7994,3581.6,3581.1,2.82691777]
[1732846115266,0.7994,3581.6,3581.1,0.03449777]
[1732846115267,0.03490409,3581.5,3581.1,0.03449777]
[1732846115552,0.03490409,3581.5,3580.4,3.8214]
[1732846115553,0.7862,3581.0,3580.0,23.55929]
[1732846115705,0.8331,3582.2,3580.1,0.57466115]
[1732846115901,2.7919,3581.8,3580.8,2.79266]
[1732846116237,2.79204,3581.6,3580.7,2.79274]
[1732846116445,0.26130199,3581.5,3580.3,0.7722]
[1732846116737,1.09440199,3581.7,3581.1,2.79241]
[1732846116902,1.09440199,3581.7,3580.4,2.79298]
[1732846116903,0.3886222,3581.6,3581.0,3.56465]
[1732846117104,0.3886222,3581.6,3581.0,2.79245]
[1732846117440,0.3886222,3581.6,3581.1,2.79243]
[1732846118553,0.8331,3581.7,3581.3,2.79226]
[1732846118840,1.01480625,3582.0,3581.5,2.79211]
[1732846119049,0.7536,3582.0,3581.6,2.79203]
[1732846119246,0.29610642,3581.9,3581.4,2.79219]
[1732846119455,0.29610642,3581.9,3581.4,2.79212]
[1732846119611,0.29610642,3581.9,3580.8,3.54823758]
[1732846119807,0.26120625,3581.9,3581.5,2.79206]
[1732846120031,0.7536,3582.0,3581.5,2.79206]
[1732846120354,0.26120625,3582.2,3582.0,2.79173]
[1732846120516,0.2961378,3582.5,3582.0,2.79166]
[1732846120713,0.03490016,3582.5,3582.2,2.79155]
[1732846120908,0.26123334,3582.5,3582.2,2.79155]
[1732846121140,0.8036,3582.6,3582.2,2.79155]
[1732846121338,1.0997264,3582.6,3582.3,2.79149]
[1732846121551,0.8036,3582.6,3582.3,2.79149]
[1732846122257,0.83849304,3582.6,3582.3,2.79149]
[1732846122459,0.26119687,3582.9,3582.8,2.79111]
[1732846122811,0.7961,3583.4,3582.9,2.79098]
[1732846122812,0.29598383,3583.3,3582.9,2.79098]
[1732846122964,0.03488771,3583.2,3582.5,3.0]
[1732846123114,0.03488771,3583.2,3582.6,2.79125]
[1732846123454,0.26109766,3583.3,3582.5,3.0]
[1732846123664,0.26109766,3583.3,3582.7,2.79117]
[1732846123828,0.64935834,3583.3,3582.7,2.79117]
[1732846124031,0.03488913,3583.2,3582.5,3.0]
[1732846124350,0.8116,3583.1,3581.9,5.79181]
[1732846124554,0.03489535,3583.0,3581.9,5.79181]
[1732846124715,0.8319,3582.9,3581.9,5.79181]
[1732846124914,0.8319,3582.9,3582.0,2.79173]
[1732846125127,1.22375818,3582.9,3582.2,2.79151]
[1732846125351,1.4847446,3582.9,3582.2,2.79151]
[1732846125559,1.4847446,3582.9,3582.3,2.79149]
[1732846125750,1.22375818,3582.9,3582.4,2.79136]
[1732846125922,1.22375818,3582.9,3582.5,2.79134]
[1732846126119,0.8319,3582.9,3582.3,2.79149]
[1732846126659,0.8319,3582.9,3582.4,2.79139]
[1732846129159,0.03489299,3582.8,3582.2,2.79154]
[1732846129319,0.03489299,3582.8,3582.1,2.79161]
[1732846129524,0.40066729,3582.8,3582.3,2.79148]
[1732846129956,0.40066729,3582.8,3582.0,2.79167]
[1732846130157,0.82569669,3582.7,3582.0,2.79167]
[1732846130464,0.7908,3582.7,3582.1,2.82577122]
[1732846130625,0.7908,3582.7,3582.2,2.79154]
[1732846131036,0.7908,3582.7,3582.3,0.03418787]
[1732846131325,0.7908,3582.7,3582.3,2.79147]
[1732846131543,0.7908,3582.7,3582.4,0.03418787]
[1732846131723,1.148976,3582.7,3582.4,0.03418787]
[1732846132366,1.18387037,3582.7,3582.4,0.03418787]
[1732846132960,0.7908,3582.7,3582.6,2.79126]
[1732846133320,0.8233,3583.2,3582.6,2.82535794]
[1732846133522,0.8233,3583.2,3582.9,2.79098]
[1732846133935,0.8233,3583.2,3583.0,0.03409794]
[1732846134344,1.08400677,3583.2,3583.0,0.03409794]
[1732846134549,0.8233,3583.2,3583.0,2.79092]
[1732846135059,0.8233,3583.2,3583.1,0.03409794]
[1732846135630,0.8233,3583.2,3583.1,2.82496794]
[1732846135942,3.20747083,3583.8,3583.1,2.82496794]
[1732846135943,0.7858,3583.5,3583.1,0.03409794]
[1732846136146,0.7858,3583.5,3582.9,2.79103]
[1732846136324,1.04650677,3583.5,3583.2,0.03409794]
[1732846136524,0.7858,3583.5,3582.9,2.79103]
[1732846136724,1.04650677,3583.5,3583.3,0.03409794]
[1732846137055,1.04650677,3583.5,3582.7,0.8325]
[1732846137056,0.41576638,3583.4,3582.7,0.8325]
[1732846137362,0.7858,3583.5,3583.4,0.03409794]
[1732846137525,0.7858,3583.5,3583.1,2.79081]
[1732846137723,0.7858,3583.5,3583.4,0.0339314]
[1732846137941,0.7858,3583.5,3583.1,2.79081]
[1732846138138,0.7858,3583.5,3583.4,0.03393473]
[1732846138362,0.7858,3583.5,3582.7,2.79118]
[1732846138581,3.57639,3583.5,3583.4,0.03393473]
[1732846138784,4.49963643,3583.5,3582.6,2.79124]
[1732846138993,0.26051494,3583.4,3582.6,2.79124]
[1732846139144,0.26051494,3583.4,3582.7,0.03388144]
[1732846139651,3.05121494,3583.4,3582.7,0.03388144]
[1732846139977,0.26051494,3583.3,3582.7,0.03388144]
[1732846140161,0.26051494,3583.3,3582.7,2.82499144]
[1732846140365,2.82558986,3583.4,3582.7,0.03388144]
[1732846140575,0.7669,3583.2,3582.7,0.03388144]
[1732846140874,0.03488987,3583.1,3582.3,3.57799]
[1732846141091,1.02735861,3583.2,3582.3,3.57799]
[1732846141092,1.02735861,3583.2,3583.0,2.79088]
[1732846141289,0.7669,3583.5,3583.0,2.79095]
[1732846141446,2.79067,3583.4,3583.1,0.03286196]
[1732846141645,2.79067,3583.4,3582.5,2.79127]
[1732846141646,3.6216,3583.2,3582.0,0.54711636]
[1732846141851,0.8308,3583.2,3582.4,2.79139]
[1732846142153,0.8308,3583.2,3582.5,0.03274203]
[1732846142373,3.62163,3583.2,3582.5,2.79127]
[1732846142568,3.62163,3583.2,3582.6,0.03274203]
[1732846142782,0.8308,3583.2,3582.6,0.03274203]
[1732846142988,0.8308,3583.2,3582.7,2.79119]
[1732846143302,3.61733,3584.0,3583.2,0.6]
[1732846143610,0.26040677,3583.9,3583.2,3.39076]
[1732846143787,0.26040677,3584.0,3583.2,0.6]
[1732846143992,0.29528911,3584.3,3583.5,2.79053]
[1732846144315,3.17388791,3584.2,3583.6,0.03274869]
[1732846144469,0.03488068,3584.1,3583.6,0.03274869]
[1732846144802,3.0853947,3584.1,3583.4,2.79063]
[1732846144975,0.7535,3584.0,3583.7,0.0326621]
[1732846145182,2.79055,3583.6,3583.2,0.6]
[1732846145385,3.42747649,3583.6,3583.2,0.6]
[1732846145715,3.42747649,3583.6,3583.3,0.0326621]
[1732846146015,0.03488595,3583.5,3583.2,0.6]
[1732846146190,0.03488595,3583.5,3583.4,0.0326621]
[1732846146517,3.42744649,3583.6,3583.4,0.0326621]
[1732846146705,0.72318171,3583.5,3583.2,0.6]
[1732846147897,0.03488598,3583.4,3583.2,0.6]
[1732846148111,0.72318171,3583.5,3583.2,0.6]
[1732846148312,0.98394803,3583.5,3583.2,0.6]
[1732846148687,0.72318171,3583.5,3583.2,0.6]
[1732846148893,0.98394803,3583.5,3583.2,0.6]
[1732846149119,0.26076632,3583.4,3583.2,0.6]
[1732846149690,0.29565233,3583.4,3583.2,0.6]
[1732846149878,0.49117441,3583.4,3583.2,0.6]
[1732846150112,0.034886,3583.3,3583.2,0.6]
[1732846150278,3.84003981,3583.3,3583.2,0.6]
[1732846150477,4.42492873,3583.3,3583.2,0.6]
[1732846150691,4.84215058,3583.3,3583.2,0.6]
[1732846150916,5.70446524,3583.3,3583.2,0.6]
[1732846151482,5.70447066,3583.3,3583.2,0.6]
[1732846151714,5.15447066,3583.3,3583.2,0.6]
[1732846151925,5.15446836,3583.3,3583.2,0.6]
[1732846152707,5.70446836,3583.3,3583.2,0.6]
[1732846152919,5.70514517,3583.3,3583.2,0.6]
[1732846153103,6.29707587,3583.3,3583.2,0.6]
[1732846153418,6.10552658,3583.3,3583.2,0.6]
[1732846153588,6.10552658,3583.3,3583.2,0.176113]
[1732846154019,5.67029536,3583.3,3583.2,0.176113]
[1732846154223,6.14038004,3583.3,3583.2,0.176113]
[1732846154421,6.10548254,3583.3,3583.2,0.176113]
[1732846155224,5.67029536,3583.3,3583.2,0.176113]
[1732846155521,6.14037765,3583.3,3583.2,0.176113]
[1732846155689,6.10548254,3583.3,3583.2,0.176113]
[1732846156086,5.67029536,3583.3,3583.2,0.176113]
[1732846156284,5.70492886,3583.3,3583.2,0.176113]
[1732846157098,2.32931489,3583.3,3583.2,0.176113]
[1732846157302,1.04933855,3583.3,3583.2,0.176113]
[1732846157487,1.04933855,3583.3,3583.2,0.2081494]
[1732846157987,0.26103855,3583.3,3583.2,0.2081494]
[1732846159598,0.29589609,3583.7,3583.2,0.2081494]
[1732846159798,0.26101062,3583.6,3583.2,0.2081494]
[1732846160000,0.26101062,3583.5,3583.2,0.2081494]
[1732846160324,0.26101062,3583.4,3583.2,0.2081494]
[1732846160524,0.26101062,3583.3,3583.2,0.2081494]
[1732846162423,1.03301062,3583.3,3583.2,0.2081494]
[1732846162625,0.26101062,3583.3,3583.2,0.2081494]
[1732846163003,0.26107802,3583.3,3583.2,0.2081494]
[1732846163317,0.26108681,3583.3,3583.2,0.2081494]
[1732846166497,0.64725223,3583.3,3583.2,0.176113]
[1732846166724,0.64725223,3583.3,3583.2,0.20764974]
[1732846166925,0.64725223,3583.3,3583.2,0.176113]
[1732846167127,3.43797223,3583.3,3583.2,0.176113]
[1732846167630,3.43797223,3583.3,3583.2,0.20764974]
[1732846168257,0.26108681,3583.3,3583.2,0.20764974]
[1732846169765,3.05180681,3583.3,3583.2,0.176113]
[1732846169992,0.26109082,3583.3,3583.2,0.176113]
[1732846170294,0.41774532,3583.9,3583.8,2.79033]
[1732846170446,0.26104101,3583.9,3583.8,0.7796]
[1732846170647,0.26104101,3584.2,3583.8,3.56993]
[1732846170858,0.29591691,3584.1,3583.8,0.03147014]
[1732846171083,0.26104101,3584.0,3583.8,0.03147014]
[1732846171289,2.79006,3584.2,3583.5,0.7796]
[1732846171469,2.78986,3584.5,3583.5,0.7796]
[1732846171470,2.78979,3584.5,3583.9,0.03146015]
[1732846171681,0.26092381,3584.4,3583.9,0.03146015]
[1732846171881,0.26092381,3584.3,3584.0,2.79016]
[1732846172061,0.26092381,3584.2,3584.0,2.79016]
[1732846172256,0.29570384,3584.6,3584.1,0.03136358]
[1732846172468,2.78989,3584.4,3584.1,0.03136358]
[1732846172671,0.29572124,3584.3,3583.6,2.79042]
[1732846172904,0.41747809,3584.6,3584.2,0.03136358]
[1732846173190,0.26083913,3584.5,3583.7,0.03136358]
[1732846173402,3.05074913,3584.4,3583.5,0.7796]
[1732846173585,0.26083913,3584.3,3583.8,0.03136358]
[1732846173804,0.26083913,3584.2,3583.5,0.7796]
[1732846174086,0.26083913,3584.1,3583.9,0.03136358]
[1732846174291,0.26083913,3584.3,3583.5,0.7796]
[1732846174591,0.26083913,3584.2,3584.0,0.03136358]
[1732846174758,0.26083913,3584.1,3583.7,2.79039]
[1732846175090,0.26083913,3584.3,3584.1,0.03136358]
[1732846175254,0.26083913,3584.2,3583.7,2.79035]
[1732846175455,0.26083913,3584.1,3583.8,0.03136358]
[1732846175699,0.26083913,3584.3,3583.8,0.03136358]
[1732846175869,0.26083913,3584.2,3583.8,0.03136358]
[1732846176065,0.26083913,3584.1,3583.8,0.03136358]
[1732846176299,0.26083913,3584.3,3583.8,0.03136358]
[1732846176455,2.78991,3584.4,3583.8,0.03136358]
[1732846176657,0.26069275,3584.3,3583.8,0.03136358]
[1732846176903,3.428402,3584.4,3583.8,0.03136358]
[1732846177064,0.26069655,3584.2,3583.8,0.03136358]
[1732846177272,0.26069655,3584.1,3583.8,0.03136358]
[1732846177464,0.26069655,3584.3,3583.8,0.03136358]
[1732846177795,0.26069655,3584.2,3583.8,0.03136358]
[1732846177970,0.26069655,3584.1,3583.8,0.03136358]
[1732846178165,0.26069655,3584.2,3583.8,0.03136358]
[1732846178779,0.26069655,3584.1,3583.6,2.79047]
[1732846179121,0.26069655,3584.2,3583.9,0.03111718]
[1732846179285,0.26069655,3584.2,3583.6,2.79047]
[1732846179486,0.26069655,3584.2,3583.7,0.03111718]
[1732846179916,2.79033,3583.8,3583.7,0.03111718]
[1732846180220,2.79068,3583.4,3583.2,0.176113]
[1732846180432,0.7785,3583.7,3583.2,0.176113]
[1732846180711,0.26065743,3583.6,3583.2,0.176113]
[1732846181005,0.26065743,3583.6,3583.2,2.966903]
[1732846181207,0.26064033,3583.8,3583.2,2.966903]
[1732846181414,3.43473336,3583.8,3583.2,0.176113]
[1732846181573,0.26064033,3583.7,3583.2,0.176113]
[1732846181908,0.26064033,3583.7,3583.3,0.7995]
[1732846182108,2.79004,3584.2,3583.5,2.79055]
[1732846182308,0.67286335,3584.1,3583.5,2.79055]
[1732846182620,0.26069145,3584.0,3583.4,2.79057]
[1732846183034,0.26069145,3584.0,3583.3,0.7995]
[1732846183238,1.19080632,3584.3,3583.3,0.7995]
[1732846183239,0.26069145,3583.9,3583.5,2.79056]
[1732846183536,3.05079229,3584.2,3583.5,2.79056]
[1732846183722,3.05079229,3584.2,3583.3,0.7995]
[1732846183723,3.05085229,3584.1,3583.4,2.79058]
[1732846183910,0.26074229,3584.0,3583.4,2.79058]
[1732846184234,0.26074229,3583.9,3583.4,2.79058]
[1732846184436,0.26074229,3584.0,3583.4,2.79058]
[1732846184621,0.26074229,3583.9,3583.4,2.79058]
[1732846184932,0.26074229,3584.0,3583.4,2.79058]
[1732846185144,0.26074229,3583.9,3583.4,2.79058]
[1732846185308,2.79003,3584.2,3583.4,2.79058]
[1732846185641,0.26089621,3584.1,3583.4,2.79058]
[1732846185939,0.26089621,3584.0,3583.4,2.79058]
[1732846186143,0.26089621,3583.9,3583.4,2.79058]
[1732846186428,2.79003,3584.2,3583.4,2.79058]
[1732846186636,0.26097884,3584.1,3583.4,2.79058]
[1732846186832,2.79047,3583.7,3583.2,0.176113]
[1732846187037,0.2609796,3583.6,3583.2,0.176113]
[1732846187215,3.59901,3583.9,3583.2,0.176113]
[1732846187410,0.2610523,3583.8,3583.2,2.966903]
[1732846187633,0.2610523,3583.7,3583.2,2.966903]
[1732846187936,0.2610523,3583.6,3583.2,2.966903]
[1732846188103,2.79033,3583.8,3583.2,2.966903]
[1732846188304,0.2610779,3583.7,3583.2,2.966903]
[1732846188513,0.2610779,3583.6,3583.2,2.966903]
[1732846188715,2.79033,3583.8,3583.2,2.966903]
[1732846189321,0.26107758,3583.7,3583.2,2.966903]
[1732846189810,0.26107213,3583.6,3583.2,2.966903]
[1732846189998,3.59899,3583.9,3583.2,2.966903]
[1732846190334,3.05142823,3583.8,3583.2,0.176113]
[1732846190559,0.26108823,3583.7,3583.3,0.0312987]
[1732846190718,0.26108823,3583.7,3583.2,0.176113]
[1732846190719,0.26108823,3583.6,3583.2,0.176113]
[1732846190918,0.26110662,3583.5,3583.4,0.03125138]
[1732846191127,2.79034,3583.8,3583.2,0.176113]
[1732846191352,0.26111589,3583.5,3583.4,0.03125138]
[1732846191556,0.26111589,3583.5,3583.2,0.176113]
[1732846191766,2.79034,3583.8,3583.2,0.176113]
[1732846192075,3.05153519,3583.7,3583.2,0.176113]
[1732846192222,0.26112519,3583.6,3583.3,0.03125138]
[1732846192554,0.26112519,3583.5,3583.2,0.176113]
[1732846192868,2.79041,3583.7,3583.2,0.176113]
[1732846192869,0.29602011,3583.4,3583.2,0.176113]
[1732846193093,3.85855655,3583.3,3583.2,0.176113]
[1732846193295,4.98653499,3583.3,3583.2,0.176113]
[1732846193983,1.48562197,3583.3,3583.2,0.176113]
[1732846194152,0.26113655,3583.3,3583.2,0.176113]
[1732846194349,2.79065,3583.4,3583.2,0.176113]
[1732846194551,3.05185956,3583.3,3583.2,0.176113]
[1732846196660,0.26113956,3583.3,3583.2,0.176113]
[1732846197901,0.26113956,3583.3,3583.2,3.721113]
[1732846198133,3.60089,3584.0,3583.2,3.721113]
[1732846198134,0.26113956,3583.7,3583.3,2.7907]
[1732846198313,0.26113956,3583.6,3583.2,1.3024243]
[1732846198489,0.26108447,3584.0,3583.6,2.79045]
[1732846198822,0.26108447,3583.9,3583.4,2.79063]
[1732846199121,0.26108447,3583.8,3583.4,2.79063]
[1732846199331,0.26108447,3583.7,3583.2,3.721113]
[1732846199535,0.26111528,3583.6,3583.3,2.7907]
[1732846199732,2.79019,3584.0,3583.3,2.7907]
[1732846199933,0.26111442,3583.9,3583.4,2.79058]
[1732846200099,0.26111442,3583.8,3583.3,2.7907]
[1732846200295,0.4178233,3584.2,3583.6,2.79044]
[1732846200633,0.26108801,3584.1,3583.9,2.79024]
[1732846200814,3.20742549,3584.6,3583.9,2.79024]
[1732846201018,0.26107406,3584.5,3583.9,2.79024]
[1732846201215,0.26107406,3584.4,3584.1,2.79009]
[1732846201417,0.26107406,3584.3,3584.1,2.79009]
[1732846201603,2.78958,3584.8,3584.1,2.79009]
[1732846201807,0.26104743,3584.7,3584.2,2.78999]
[1732846202008,0.26104743,3584.6,3584.3,0.8164]
[1732846202212,0.26104743,3584.5,3584.3,0.8164]
[1732846202447,2.78951,3584.9,3584.3,0.8164]
[1732846202448,0.26104743,3584.4,3584.3,0.8164]
[1732846202753,0.42782857,3585.0,3584.3,0.8164]
[1732846202754,0.26100911,3584.8,3584.4,2.78983]
[1732846202959,0.26100911,3584.7,3584.4,2.78983]
[1732846203162,0.26100911,3584.6,3584.4,2.78983]
[1732846203463,0.26100911,3584.5,3584.4,2.78983]
[1732846203641,0.26092945,3584.9,3584.6,2.78969]
[1732846203831,0.26092945,3584.8,3584.6,2.78969]
[1732846204146,2.78924,3585.2,3584.4,2.78982]
[1732846204357,0.83013776,3585.1,3584.4,2.78982]
[1732846204562,0.26093206,3585.0,3584.4,2.7898]
[1732846204714,0.5692057,3585.1,3584.5,0.02964793]
[1732846204715,0.26093206,3584.9,3584.5,0.02964793]
[1732846204914,0.26093206,3584.8,3584.6,2.7897]
[1732846205208,1.73536996,3585.3,3584.6,2.7897]
[1732846205209,0.26093206,3585.0,3584.7,2.81828966]
[1732846205412,0.26093206,3585.2,3585.1,3.59882]
[1732846205622,0.43488242,3585.9,3585.1,3.59882]
[1732846205623,1.16744703,3586.3,3585.3,2.78916]
[1732846205821,0.26066322,3586.2,3585.5,3.11216357]
[1732846206021,0.26066322,3586.6,3585.6,3.69216636]
[1732846206267,3.56018,3586.9,3585.6,3.69216636]
[1732846206268,0.26066322,3586.5,3585.6,3.69216636]
[1732846206568,0.29551809,3586.8,3586.0,2.78855]
[1732846206769,0.03485487,3586.8,3585.8,2.78877]
[1732846207081,0.29506082,3586.8,3586.1,5.57706]
[1732846207282,2.9418173,3587.3,3586.4,2.78824]
[1732846207581,0.41633064,3587.0,3586.2,0.8228]
[1732846207730,1.51268543,3587.2,3586.5,0.0281174]
[1732846207918,1.51268543,3587.2,3586.2,0.8228]
[1732846208126,1.51268543,3587.2,3586.3,0.0281174]
[1732846208481,0.823,3587.2,3586.3,0.0281174]
[1732846208775,0.1542073,3587.3,3586.8,3.94186357]
[1732846209059,0.1542073,3587.3,3586.9,0.02069978]
[1732846209264,0.1542073,3587.3,3586.9,0.02781155]
[1732846209773,0.1542073,3587.3,3587.0,2.78783]
[1732846209920,0.1542073,3587.3,3586.8,0.8297]
[1732846210120,0.1542073,3587.3,3586.8,3.979467]
[1732846210367,0.1542073,3587.3,3587.1,2.78771]
[1732846210663,0.1542073,3587.3,3586.9,0.02770853]
[1732846210992,0.1542073,3587.3,3587.2,2.78768]
[1732846211323,0.1542073,3587.3,3587.1,2.7877]
[1732846211523,0.1542073,3587.3,3587.2,0.30647853]
[1732846211757,0.1542073,3587.3,3587.2,3.09415853]
[1732846212173,0.1542073,3587.3,3587.2,0.30647853]
[1732846212377,0.03483988,3588.9,3587.8,2.78722]
[1732846212576,0.03483988,3588.9,3587.2,0.30647853]
[1732846212577,2.78635,3589.0,3588.0,0.7666]
[1732846212760,2.78637,3588.9,3588.0,1.12404151]
[1732846212967,2.78605,3589.3,3588.0,0.7666]
[1732846213190,2.78668,3588.5,3588.0,0.7666]
[1732846213387,2.78652,3588.7,3588.1,0.02603338]
[1732846213739,0.7765,3589.5,3588.1,0.02603338]
[1732846214094,2.78661,3588.6,3587.7,2.78729]
[1732846214391,2.78598,3589.4,3587.8,0.02603338]
[1732846214392,2.78693,3588.2,3587.8,0.02603338]
[1732846214547,2.78693,3588.2,3587.7,0.360589]
[1732846214745,2.78693,3588.2,3587.9,0.0260201]
[1732846214943,2.78693,3588.2,3587.6,0.8186]
[1732846215144,2.78693,3588.2,3588.0,0.02602342]
[1732846215341,2.78693,3588.2,3587.6,0.8186]
[1732846215582,2.78693,3588.2,3587.7,0.02602342]
[1732846215788,2.78693,3588.2,3587.6,0.8186]
[1732846215991,2.78693,3588.2,3587.8,0.02602342]
[1732846216294,2.78672,3588.5,3587.6,0.8186]
[1732846216580,2.78629,3589.0,3587.8,2.78719]
[1732846216787,2.78651,3588.8,3587.9,2.78714]
[1732846217159,2.78653,3588.7,3588.0,0.02602342]
[1732846217362,0.7735,3589.5,3588.1,0.7756]
[1732846217674,0.7735,3589.5,3588.3,2.78676]
[1732846217675,2.78607,3589.3,3588.3,2.78676]
[1732846217992,2.78607,3589.3,3588.4,0.35883834]
[1732846217993,2.78609,3589.3,3588.4,0.35883834]
[1732846218203,3.11216357,3590.1,3588.6,2.78652]
[1732846218494,0.7638,3590.0,3588.4,3.14558834]
[1732846218655,2.78592,3589.5,3588.7,0.02490649]
[1732846218859,0.03482702,3589.8,3588.4,0.35883834]
[1732846219098,0.7638,3590.0,3588.9,3.59009]
[1732846219302,0.7638,3590.0,3589.0,0.35380152]
[1732846219601,0.7748,3590.8,3589.5,0.8038]
[1732846219755,2.78499,3590.7,3589.6,1.08431577]
[1732846219959,2.78499,3590.7,3589.7,0.50578452]
[1732846220207,2.78514,3590.5,3589.7,0.50578452]
[1732846220371,2.78513,3590.5,3589.7,0.50578452]
[1732846220556,2.78513,3590.5,3589.8,0.02463098]
[1732846220760,3.43486973,3590.7,3589.8,0.0452801]
[1732846220963,3.43486973,3590.7,3589.8,2.81029098]
[1732846220964,0.64987973,3590.7,3589.8,2.81029098]